[Event "Bangabandhu Premier Div League 2023-24"]
[Site "Dhaka"]
[Date "2024.02.04"]
[Round "4.6"]
[White "Rathanvel, V S"]
[Black "Kushagra Mohan"]
[Result "1-0"]
[ECO "C78"]
[WhiteElo "2474"]
[BlackElo "2374"]
[Annotator "RC"]
[PlyCount "99"]
[EventDate "2024.02.01"]
[EventCountry "BAN"]
[SourceTitle "playchess.com"]
[Source "ChessBase"]
[SourceQuality "1"]
[TimeControl "40/5400+30:1800+30"]

1. e4 {[%emt 0:00:03]} e5 {[%emt 0:00:05]} 2. Nf3 {[%emt 0:00:12]} Nc6 {[%emt 0:00:03]} 3. Bb5 {[%emt 0:00:13]} a6 {[%emt 0:00:04]} 4. Ba4 {[%emt 0:00:08]} Nf6 {[%emt 0:00:02]} 5. O-O {[%emt 0:00:12]} b5 {[%emt 0:00:02]} 6. Bb3 {[%emt 0:00:12]} Bc5 {[%emt 0:00:03]} 7. c3 {[%emt 0:00:44]} d6 {[%emt 0:00:04]} 8. d4 {[%emt 0:00:07]} Bb6 {[%emt 0:00:10]} 9. Be3 {[%emt 0:00:06]} O-O {[%emt 0:00:04]} 10. Nbd2 {[%emt 0:00:08]} Re8 {[%emt 0:00:06]} 11. h3 {[%emt 0:00:06]} h6 {[%emt 0:00:12]} 12. Qe2 {[%emt 0:00:21]} exd4 {[%emt 0:00:44]} 13. cxd4 {[%emt 0:00:14]} Na5 {[%emt 0:00:04]} 14. Bc2 {[%emt 0:00:30]} Bb7 {[%emt 0:01:01]} 15. a4 {[%emt 0:03:21]} b4 {[%emt 0:09:05]} 16. e5 {[%emt 0:01:19]} dxe5 {[%emt 0:02:04]} 17. dxe5 {[%emt 0:00:08]} Bxe3 {[%emt 0:02:34]} 18. Qxe3 {[%emt 0:00:13]} Nd5 {[%emt 1:23:03]} 19. Qe4 {[%emt 0:31:25]} g6 {[%emt 0:00:00]} 20. Qg4 {[%emt 0:00:06]} Qc8 {[%emt 0:00:00]} 21. Qh4 {[%emt 0:08:01]} Kg7 {[%emt 0:00:00]} 22. Rfe1 {[%emt 0:03:32]} Qe6 {[%emt 0:00:00]} 23. Qg3 {[%emt 0:20:13]} Ne7 {[%emt 0:00:00]} 24. Be4 {[%emt 0:13:20]} Bxe4 {[%emt 0:00:00]} 25. Nxe4 {[%emt 0:01:32]} Nb3 {[%emt 0:00:00]} 26. Rad1 {[%emt 0:01:03]} Nf5 {[%emt 0:04:00]} 27. Qf4 {[%emt 0:00:37]} Red8 {[%emt 0:00:00]} 28. h4 {[%emt 0:11:20]} Rxd1 {[%emt 0:00:00]} 29. Rxd1 {[%emt 0:00:02]} Qc4 {[%emt 0:00:00]} 30. Rd7 {[%emt 0:02:41]} Re8 {[%emt 0:00:00]} 31. g4 {[%emt 0:02:53]} Nbd4 {[%emt 0:00:00]} 32. Nxd4 {[%emt 0:00:42]} Nxd4 {[%emt 0:00:00]} 33. Qf6+ {[%emt 0:00:31]} Kg8 {[%emt 0:00:00]} 34. e6 {[%emt 0:00:16]} Ne2+ {[%emt 0:00:00]} 35. Kh2 {[%emt 0:00:37]} Qxe6 {[%emt 0:00:00]} 36. Rxc7 {[%emt 0:00:21]} Nd4 {[%emt 0:00:00]} 37. g5 {[%emt 0:00:49]} hxg5 {[%emt 0:00:00]} 38. hxg5 {[%emt 0:00:01]} Nf3+ {[%emt 0:00:00]} 39. Qxf3 {[%emt 0:01:01]} Qe5+ {[%emt 0:00:00]} 40. Kg2 {[%emt 0:00:12]} Qxe4 {[%emt 0:00:00]} 41. Rxf7 {[%emt 0:02:25]} Qe5 {[%emt 0:00:00]} 42. Rf4 {[%emt 0:00:18]} Qxg5+ {[%emt 0:00:00]} 43. Rg4 {[%emt 0:00:09]} Qh5 {[%emt 0:00:00]} 44. Rxb4 {[%emt 0:03:37]} Qxf3+ {[%emt 0:00:00]} 45. Kxf3 {[%emt 0:00:01]} Re6 {[%emt 0:00:00]} 46. a5 {[%emt 0:10:31]} Re5 {[%emt 0:00:00]} 47. Rb8+ {[%emt 0:00:09]} Kf7 {[%emt 0:00:00]} 48. b4 {[%emt 0:00:05]} Re1 {[%emt 0:00:00]} 49. Rb7+ {[%emt 0:00:40]} Kf8 {[%emt 0:00:00]} 50. b5 {[%emt 0:04:11]} 1-0

[Event "Bangabandhu Premier Div League 2023-24"]
[Site "Dhaka"]
[Date "2024.02.04"]
[Round "4.7"]
[White "Arpan Das"]
[Black "Ter-Sahakyan, Samvel"]
[Result "0-1"]
[ECO "B92"]
[WhiteElo "2367"]
[BlackElo "2649"]
[Annotator "ChessBase"]
[PlyCount "70"]
[EventDate "2024.02.01"]
[EventCountry "BAN"]
[SourceTitle "playchess.com"]
[Source "ChessBase"]
[SourceQuality "1"]
[TimeControl "40/5400+30:1800+30"]

1. e4 {[%emt 0:00:03]} c5 {[%emt 0:00:05]} 2. Nf3 {[%emt 0:00:07]} d6 {[%emt 0:00:03]} 3. d4 {[%emt 0:00:03]} cxd4 {[%emt 0:00:04]} 4. Nxd4 {[%emt 0:00:05]} Nf6 {[%emt 0:00:03]} 5. Nc3 {[%emt 0:00:06]} a6 {[%emt 0:00:03]} 6. Be2 {[%emt 0:00:07]} e5 {[%emt 0:00:04]} 7. Nb3 {[%emt 0:00:49]} Be7 {[%emt 0:00:05]} 8. Be3 {[%emt 0:00:10]} Be6 {[%emt 0:00:05]} 9. Nd5 {[%emt 0:00:21]} Nbd7 {[%emt 0:00:07]} 10. Qd3 {[%emt 0:00:07]} O-O {[%emt 0:00:16]} 11. O-O {[%emt 0:00:50]} Bxd5 {[%emt 0:00:04]} 12. exd5 {[%emt 0:00:04]} h5 {[%emt 0:00:20]} 13. a4 {[%emt 1:34:08]} Ng4 {[%emt 1:35:41]} 14. Bc1 {[%emt 0:00:00]} Bg5 {[%emt 0:00:30]} 15. h3 {[%emt 0:00:00]} Bxc1 {[%emt 0:00:00]} 16. Rfxc1 {[%emt 0:00:00]} Ngf6 {[%emt 0:00:00]} 17. a5 {[%emt 0:02:00]} Re8 {[%emt 0:00:00]} 18. c4 {[%emt 0:00:00]} b6 {[%emt 0:02:00]} 19. Qe3 {[%emt 0:01:00]} Rb8 {[%emt 0:00:30]} 20. Ra2 {[%emt 0:00:30]} Nc5 {[%emt 0:00:30]} 21. axb6 {[%emt 0:00:00]} Nxb3 {[%emt 0:00:00]} 22. Qxb3 {[%emt 0:01:00]} Rxb6 {[%emt 0:01:00]} 23. Qe3 {[%emt 0:00:30]} Qb8 {[%emt 0:00:30]} 24. Rca1 {[%emt 0:00:30]} Rxb2 {[%emt 0:00:30]} 25. Rxb2 {[%emt 0:00:00]} Qxb2 {[%emt 0:00:00]} 26. Rxa6 {[%emt 0:00:00]} Rd8 {[%emt 0:01:00]} 27. Bf1 {[%emt 0:01:30]} h4 {[%emt 0:00:30]} 28. Rc6 {[%emt 0:00:00]} Qd4 {[%emt 0:00:30]} 29. Qxd4 {[%emt 0:00:00]} exd4 {[%emt 0:00:00]} 30. Rb6 {[%emt 0:01:30]} Ne4 {[%emt 0:00:00]} 31. f3 {[%emt 0:00:30]} Ng3 {[%emt 0:01:30]} 32. Bd3 {[%emt 0:00:30]} Kf8 {[%emt 0:00:00]} 33. Kf2 {[%emt 0:00:30]} Ra8 {[%emt 0:00:00]} 34. Rxd6 {[%emt 0:00:00]} Ra3 {[%emt 0:00:00]} 35. Be4 {[%emt 0:00:28]} Re3 {[%emt 0:00:00]} 0-1

[Event "Bangabandhu Premier Div League 2023-24"]
[Site "Dhaka"]
[Date "2024.02.04"]
[Round "4.7"]
[White "Sajidul, Haque"]
[Black "Mohammed Abdul, Malek"]
[Result "0-1"]
[ECO "B38"]
[WhiteElo "1922"]
[BlackElo "2047"]
[Annotator "NA"]
[PlyCount "104"]
[EventDate "2024.02.01"]
[EventCountry "BAN"]
[SourceTitle "playchess.com"]
[Source "ChessBase"]
[SourceQuality "1"]
[TimeControl "40/5400+30:1800+30"]

1. c4 {[%emt 0:00:16]} Nf6 {[%emt 0:00:22]} 2. Nc3 {[%emt 0:00:05]} c5 {[%emt 0:01:06]} 3. Nf3 {[%emt 0:00:40]} Nc6 {[%emt 0:00:17]} 4. d4 {[%emt 0:00:39]} cxd4 {[%emt 0:00:12]} 5. Nxd4 {[%emt 0:00:03]} d6 {[%emt 0:01:00]} 6. e4 {[%emt 0:00:07]} Bd7 {[%emt 0:00:05]} 7. f3 {[%emt 0:02:04]} g6 {[%emt 0:02:09]} 8. Be3 {[%emt 0:00:42]} Bg7 {[%emt 0:00:07]} 9. Be2 {[%emt 0:00:35]} O-O {[%emt 0:00:03]} 10. O-O {[%emt 0:00:28]} Ne5 {[%emt 0:03:19]} 11. Rc1 {[%emt 0:04:10]} Rc8 {[%emt 0:00:26]} 12. Qb3 {[%emt 0:00:28]} Qa5 {[%emt 0:02:25]} 13. Ndb5 {[%emt 0:01:42]} Nc6 {[%emt 0:09:47]} 14. Nxa7 {[%emt 0:15:30]} Nxa7 {[%emt 0:03:12]} 15. Bb6 {[%emt 0:00:57]} Qa6 {[%emt 0:03:05]} 16. c5 {[%emt 0:00:12]} Nb5 {[%emt 0:01:24]} 17. Bxb5 {[%emt 0:03:31]} Bxb5 {[%emt 0:00:14]} 18. Qxb5 {[%emt 0:00:04]} Qxb5 {[%emt 0:03:15]} 19. Nxb5 {[%emt 0:00:54]} Nd7 {[%emt 0:01:35]} 20. b4 {[%emt 0:02:44]} Ra8 {[%emt 0:02:28]} 21. Rc2 {[%emt 0:09:32]} Ra4 {[%emt 0:05:55]} 22. a3 {[%emt 0:09:17]} Ra6 {[%emt 0:08:23]} 23. Ba5 {[%emt 0:07:40]} dxc5 {[%emt 0:05:23]} 24. Rd1 {[%emt 0:01:30]} Ne5 {[%emt 0:02:58]} 25. Rxc5 {[%emt 0:04:20]} b6 {[%emt 0:01:45]} 26. Nc7 {[%emt 0:00:42]} Rxa5 {[%emt 0:00:38]} 27. bxa5 {[%emt 0:04:53]} bxc5 {[%emt 0:00:42]} 28. a6 {[%emt 0:06:44]} Nc6 {[%emt 0:01:28]} 29. Rb1 {[%emt 0:00:50]} c4 {[%emt 0:02:16]} 30. Kf1 {[%emt 0:00:22]} Bd4 {[%emt 0:03:27]} 31. Rb7 {[%emt 0:02:04]} e5 {[%emt 0:04:25]} 32. Nb5 {[%emt 0:05:05]} Ra8 {[%emt 0:01:40]} 33. Rc7 {[%emt 0:03:54]} Rxa6 {[%emt 0:01:21]} 34. Rc8+ {[%emt 0:00:02]} Kg7 {[%emt 0:00:16]} 35. Nc7 {[%emt 0:01:33]} Rb6 {[%emt 0:03:02]} 36. Ne8+ {[%emt 0:01:17]} Kh6 {[%emt 0:00:45]} 37. Nd6 {[%emt 0:02:46]} c3 {[%emt 0:01:29]} 38. Ke2 {[%emt 0:02:33]} Na5 {[%emt 0:01:54]} 39. Nxf7+ {[%emt 0:01:01]} Kg7 {[%emt 0:00:03]} 40. Rc7 {[%emt 0:00:41]} Rb2+ {[%emt 0:01:43]} 41. Ke1 {[%emt 0:31:27]} Rb7 {[%emt 0:33:16]} 42. Nd8+ {[%emt 0:00:43]} Rxc7 {[%emt 0:00:12]} 43. Ne6+ {[%emt 0:00:02]} Kf6 {[%emt 0:00:16]} 44. Nxc7 {[%emt 0:00:07]} Nc4 {[%emt 0:00:35]} 45. Nd5+ {[%emt 0:01:15]} Ke6 {[%emt 0:00:34]} 46. Nb4 {[%emt 0:01:05]} Nxa3 {[%emt 0:00:37]} 47. Nd3 {[%emt 0:01:50]} Nc2+ {[%emt 0:00:45]} 48. Ke2 {[%emt 0:00:12]} Bg1 {[%emt 0:01:04]} 49. h4 {[%emt 0:00:38]} Nd4+ {[%emt 0:00:12]} 50. Kd1 {[%emt 0:00:33]} Be3 {[%emt 0:00:29]} 51. Ne1 {[%emt 0:04:29]} Kd6 {[%emt 0:01:18]} 52. g3 {[%emt 0:00:48]} Bf2 {[%emt 0:00:48]} 0-1

[Event "Bangabandhu Premier Div League 2023-24"]
[Site "Dhaka"]
[Date "2024.02.04"]
[Round "4.8"]
[White "Harikrishnan.A.Ra"]
[Black "Suvradeepta, Das"]
[Result "1-0"]
[ECO "D45"]
[WhiteElo "2454"]
[BlackElo "2141"]
[Annotator "ChessBase"]
[PlyCount "81"]
[EventDate "2024.02.01"]
[EventCountry "BAN"]
[SourceTitle "playchess.com"]
[Source "ChessBase"]
[SourceQuality "1"]
[TimeControl "40/5400+30:1800+30"]

1. d4 {[%emt 0:00:09]} d5 {[%emt 0:01:31]} 2. c4 {[%emt 0:01:58]} e6 {[%emt 0:00:37]} 3. Nc3 {[%emt 0:00:51]} c6 {[%emt 0:00:16]} 4. e4 {[%emt 0:02:15]} dxe4 {[%emt 0:00:16]} 5. Nxe4 {[%emt 0:00:05]} Bb4+ {[%emt 0:00:05]} 6. Nc3 {[%emt 0:00:14]} Nf6 {[%emt 0:04:24]} 7. Nf3 {[%emt 0:06:48]} O-O {[%emt 0:00:08]} 8. Bd3 {[%emt 0:04:18]} Nbd7 {[%emt 0:00:37]} 9. O-O {[%emt 0:00:29]} b6 {[%emt 0:06:11]} 10. Bf4 {[%emt 0:04:16]} Bb7 {[%emt 0:02:27]} 11. a3 {[%emt 0:02:52]} Be7 {[%emt 0:00:51]} 12. Qc2 {[%emt 0:09:16]} Re8 {[%emt 0:02:53]} 13. Rad1 {[%emt 0:03:36]} Nf8 {[%emt 0:01:13]} 14. c5 {[%emt 0:07:58]} Ng6 {[%emt 0:03:34]} 15. Bg5 {[%emt 0:02:21]} Qc8 {[%emt 0:10:58]} 16. b4 {[%emt 0:11:01]} Ba6 {[%emt 0:12:25]} 17. Bxf6 {[%emt 0:03:50]} gxf6 {[%emt 0:00:20]} 18. h4 {[%emt 0:14:54]} Kh8 {[%emt 0:13:09]} 19. Qc1 {[%emt 0:08:01]} Bxd3 {[%emt 0:01:54]} 20. Rxd3 {[%emt 0:00:01]} b5 {[%emt 0:04:50]} 21. h5 {[%emt 0:04:44]} Nf8 {[%emt 0:00:11]} 22. Re1 {[%emt 0:00:26]} a5 {[%emt 0:06:52]} 23. Qf4 {[%emt 0:05:08]} axb4 {[%emt 0:02:54]} 24. axb4 {[%emt 0:00:01]} Nd7 {[%emt 0:08:06]} 25. Rde3 {[%emt 0:04:20]} Ra3 {[%emt 0:00:20]} 26. d5 {[%emt 0:00:55]} e5 {[%emt 0:07:05]} 27. Qe4 {[%emt 0:00:52]} Nxc5 {[%emt 0:02:32]} 28. bxc5 {[%emt 0:00:27]} Bxc5 {[%emt 0:00:02]} 29. Qh4 {[%emt 0:01:50]} Qf5 {[%emt 0:01:19]} 30. dxc6 {[%emt 0:00:33]} Bxe3 {[%emt 0:02:16]} 31. Rxe3 {[%emt 0:00:02]} Rg8 {[%emt 0:01:05]} 32. c7 {[%emt 0:00:21]} Ra6 {[%emt 0:01:22]} 33. Nd5 {[%emt 0:01:02]} Qe6 {[%emt 0:03:13]} 34. Rc3 {[%emt 0:00:51]} Rc8 {[%emt 0:00:30]} 35. Ne3 {[%emt 0:00:30]} Rc6 {[%emt 0:00:30]} 36. Rxc6 {[%emt 0:00:23]} Qxc6 {[%emt 0:00:02]} 37. h6 {[%emt 0:00:19]} Qe6 {[%emt 0:01:18]} 38. Qb4 {[%emt 0:00:23]} Qd7 {[%emt 0:00:21]} 39. Qh4 {[%emt 0:00:35]} Qe6 {[%emt 0:00:17]} 40. Nd5 {[%emt 0:00:26]} b4 {[%emt 0:00:49]} 41. Qg3 {[%emt 0:30:31]} 1-0

[Event "Bangabandhu Premier Div League 2023-24"]
[Site "Dhaka"]
[Date "2024.02.04"]
[Round "4.8"]
[White "Rahman, Ziaur"]
[Black "Avik, Sarker"]
[Result "1-0"]
[ECO "A06"]
[WhiteElo "2428"]
[BlackElo "1914"]
[Annotator "ChessBase"]
[PlyCount "99"]
[EventDate "2024.02.01"]
[EventCountry "BAN"]
[SourceTitle "playchess.com"]
[Source "ChessBase"]
[SourceQuality "1"]
[TimeControl "40/5400+30:1800+30"]

1. Nf3 {[%emt 0:01:17]} d5 {[%emt 0:00:14]} 2. e3 {[%emt 0:00:40]} Bf5 {[%emt 0:02:21]} 3. c4 {[%emt 1:30:03]} e6 {[%emt 1:29:25]} 4. Nc3 {[%emt 0:00:00]} c6 {[%emt 0:00:00]} 5. b3 {[%emt 0:01:00]} Nd7 {[%emt 0:00:00]} 6. Be2 {[%emt 0:00:00]} Bd6 {[%emt 0:00:00]} 7. Bb2 {[%emt 0:01:00]} Ngf6 {[%emt 0:00:00]} 8. Nh4 {[%emt 0:00:00]} Bg6 {[%emt 0:02:30]} 9. d3 {[%emt 0:01:00]} e5 {[%emt 0:00:30]} 10. Nxg6 {[%emt 0:00:00]} hxg6 {[%emt 0:00:00]} 11. d4 {[%emt 0:00:00]} e4 {[%emt 0:00:00]} 12. Qd2 {[%emt 0:00:00]} a6 {[%emt 0:00:00]} 13. O-O-O {[%emt 0:00:00]} b5 {[%emt 0:00:00]} 14. c5 {[%emt 0:00:00]} Bc7 {[%emt 0:00:00]} 15. f4 {[%emt 0:00:00]} Qe7 {[%emt 0:00:00]} 16. Kb1 {[%emt 0:03:30]} Qe6 {[%emt 0:03:30]} 17. h3 {[%emt 0:00:30]} Nh5 {[%emt 0:00:00]} 18. Qe1 {[%emt 0:00:00]} f5 {[%emt 0:00:00]} 19. g4 {[%emt 0:00:00]} Nhf6 {[%emt 0:00:00]} 20. Qg3 {[%emt 0:00:00]} O-O-O {[%emt 0:00:00]} 21. Qg2 {[%emt 0:00:00]} Rh4 {[%emt 0:02:30]} 22. a4 {[%emt 0:02:30]} Rdh8 {[%emt 0:00:00]} 23. g5 {[%emt 0:00:30]} Ne8 {[%emt 0:00:00]} 24. axb5 {[%emt 0:00:00]} axb5 {[%emt 0:00:00]} 25. Na2 {[%emt 0:01:00]} Bd8 {[%emt 0:00:00]} 26. Bc3 {[%emt 0:00:00]} Nb8 {[%emt 0:02:30]} 27. Kb2 {[%emt 0:00:00]} Qd7 {[%emt 0:00:00]} 28. Nb4 {[%emt 0:00:00]} Qb7 {[%emt 0:00:00]} 29. Ra1 {[%emt 0:00:00]} Nc7 {[%emt 0:00:00]} 30. Be1 {[%emt 0:00:00]} R4h7 {[%emt 0:00:00]} 31. h4 {[%emt 0:03:00]} Nba6 {[%emt 0:00:00]} 32. Nc2 {[%emt 0:00:00]} Kd7 {[%emt 0:03:00]} 33. Bf2 {[%emt 0:00:00]} Be7 {[%emt 0:00:00]} 34. Ra2 {[%emt 0:00:00]} Ke6 {[%emt 0:00:00]} 35. Rha1 {[%emt 0:00:00]} Ra8 {[%emt 0:00:00]} 36. Qf1 {[%emt 0:02:30]} Kf7 {[%emt 0:02:00]} 37. Ra5 {[%emt 0:00:00]} Rhh8 {[%emt 0:00:00]} 38. R1a2 {[%emt 0:00:00]} Ke6 {[%emt 0:01:00]} 39. Qa1 {[%emt 0:00:00]} Kf7 {[%emt 0:00:30]} 40. Be1 {[%emt 0:00:00]} Ke6 {[%emt 0:00:00]} 41. R5a3 {[%emt 0:00:00]} Kf7 {[%emt 0:11:08]} 42. Ba5 {[%emt 0:01:00]} Ke6 {[%emt 0:02:09]} 43. Bxc7 {[%emt 0:06:15]} Nxc7 {[%emt 0:00:13]} 44. Ra7 {[%emt 0:00:09]} Rxa7 {[%emt 0:00:46]} 45. Rxa7 {[%emt 0:00:12]} Qb8 {[%emt 0:04:59]} 46. Nb4 {[%emt 0:00:55]} Rxh4 {[%emt 0:11:09]} 47. Nxc6 {[%emt 0:00:28]} Qc8 {[%emt 0:00:47]} 48. Qa5 {[%emt 0:01:05]} Rh2 {[%emt 0:00:50]} 49. Rxc7 {[%emt 0:00:50]} Rxe2+ {[%emt 0:00:43]} 50. Kc1 {[%emt 0:01:44]} 1-0

[Event "Bangabandhu Premier Div League 2023-24"]
[Site "Dhaka"]
[Date "2024.02.04"]
[Round "4.9"]
[White "Mohammad Minhaz Uddin"]
[Black "Rahman, Syed Mahfuzur"]
[Result "1/2-1/2"]
[ECO "B55"]
[WhiteElo "2224"]
[BlackElo "2087"]
[Annotator "ChessBase"]
[PlyCount "84"]
[EventDate "2024.02.01"]
[EventCountry "BAN"]
[SourceTitle "playchess.com"]
[Source "ChessBase"]
[SourceQuality "1"]
[TimeControl "40/5400+30:1800+30"]

1. e4 {[%emt 1:31:00]} c5 {[%emt 0:08:51]} 2. Nf3 {[%emt 0:00:00]} d6 {[%emt 0:00:03]} 3. d4 {[%emt 0:00:00]} cxd4 {[%emt 0:00:02]} 4. Nxd4 {[%emt 0:00:00]} Nf6 {[%emt 0:00:04]} 5. f3 {[%emt 0:00:00]} e5 {[%emt 1:24:00]} 6. Bb5+ {[%emt 0:00:00]} Bd7 {[%emt 0:00:00]} 7. Bxd7+ {[%emt 0:00:00]} Qxd7 {[%emt 0:00:00]} 8. Nf5 {[%emt 0:00:00]} d5 {[%emt 0:00:00]} 9. Bg5 {[%emt 0:00:00]} dxe4 {[%emt 0:00:00]} 10. Bxf6 {[%emt 0:00:00]} gxf6 {[%emt 0:00:00]} 11. fxe4 {[%emt 0:00:00]} Qxd1+ {[%emt 0:00:00]} 12. Kxd1 {[%emt 0:00:00]} Rg8 {[%emt 0:00:00]} 13. g3 {[%emt 0:00:00]} Nc6 {[%emt 0:04:00]} 14. c3 {[%emt 0:00:00]} Rd8+ {[%emt 0:00:00]} 15. Nd2 {[%emt 0:00:00]} Ne7 {[%emt 0:00:00]} 16. Kc2 {[%emt 0:00:00]} h5 {[%emt 0:01:30]} 17. Rae1 {[%emt 0:01:16]} Rg4 {[%emt 0:00:00]} 18. Nxe7 {[%emt 0:00:39]} Kxe7 {[%emt 0:00:00]} 19. Nf3 {[%emt 0:00:03]} Bh6 {[%emt 0:00:00]} 20. Re2 {[%emt 0:00:09]} Bg5 {[%emt 0:00:31]} 21. Rg1 {[%emt 0:03:56]} h4 {[%emt 0:00:13]} 22. gxh4 {[%emt 0:00:41]} Rxg1 {[%emt 0:00:04]} 23. Nxg1 {[%emt 0:00:06]} Bxh4 {[%emt 0:00:09]} 24. Nf3 {[%emt 0:00:03]} Bg5 {[%emt 0:01:40]} 25. Rg2 {[%emt 0:00:10]} Rh8 {[%emt 0:00:51]} 26. h4 {[%emt 0:01:33]} Bf4 {[%emt 0:00:16]} 27. c4 {[%emt 0:02:00]} f5 {[%emt 0:01:07]} 28. exf5 {[%emt 0:01:26]} Kf6 {[%emt 0:00:02]} 29. b4 {[%emt 0:01:13]} Kxf5 {[%emt 0:00:17]} 30. Rg7 {[%emt 0:00:07]} Kf6 {[%emt 0:00:35]} 31. Rg1 {[%emt 0:00:05]} e4 {[%emt 0:00:41]} 32. Ng5 {[%emt 0:00:47]} Kf5 {[%emt 0:00:59]} 33. Nxf7 {[%emt 0:00:08]} Rxh4 {[%emt 0:00:05]} 34. c5 {[%emt 0:00:28]} Rh2+ {[%emt 0:00:12]} 35. Kc3 {[%emt 0:00:13]} Rxa2 {[%emt 0:01:13]} 36. Nd8 {[%emt 0:00:33]} e3 {[%emt 0:00:25]} 37. Nxb7 {[%emt 0:00:02]} e2 {[%emt 0:00:26]} 38. Nd6+ {[%emt 0:00:02]} Ke6 {[%emt 0:00:28]} 39. Nb5 {[%emt 0:01:31]} Bd2+ {[%emt 0:00:44]} 40. Kb3 {[%emt 0:00:02]} e1=Q {[%emt 0:01:02]} 41. Rxe1+ {[%emt 0:30:14]} Bxe1 {[%emt 0:29:28]} 42. Kxa2 {[%emt 0:00:07]} Bxb4 {[%emt 0:00:21]} 1/2-1/2

[Event "Bangabandhu Premier Div League 2023-24"]
[Site "Dhaka"]
[Date "2024.02.04"]
[Round "4.10"]
[White "Hasan, Sk. Rashedul"]
[Black "Ahmed, Sheikh Nasir"]
[Result "0-1"]
[ECO "B22"]
[WhiteElo "1807"]
[BlackElo "2182"]
[Annotator "RC"]
[PlyCount "100"]
[EventDate "2024.02.01"]
[EventCountry "BAN"]
[SourceTitle "playchess.com"]
[Source "ChessBase"]
[SourceQuality "1"]
[TimeControl "40/5400+30:1800+30"]

1. e4 {[%emt 0:00:04]} c5 {[%emt 0:00:10]} 2. c3 {[%emt 1:31:26]} d5 {[%emt 0:01:27]} 3. d3 {[%emt 0:00:00]} Nc6 {[%emt 0:01:01]} 4. Nd2 {[%emt 0:00:00]} e5 {[%emt 0:03:49]} 5. Ngf3 {[%emt 0:00:00]} Nf6 {[%emt 0:01:10]} 6. Be2 {[%emt 0:02:00]} Be7 {[%emt 0:05:08]} 7. a3 {[%emt 0:00:00]} O-O {[%emt 0:03:38]} 8. b4 {[%emt 0:00:00]} a6 {[%emt 0:00:41]} 9. O-O {[%emt 0:00:00]} Re8 {[%emt 0:06:06]} 10. Re1 {[%emt 0:00:00]} Bf8 {[%emt 0:06:55]} 11. Bf1 {[%emt 0:00:00]} Bg4 {[%emt 0:03:20]} 12. Qc2 {[%emt 0:03:00]} Rc8 {[%emt 0:05:07]} 13. Qb1 {[%emt 0:00:30]} d4 {[%emt 0:58:28]} 14. cxd4 {[%emt 0:00:30]} Nxd4 {[%emt 0:00:00]} 15. Nxd4 {[%emt 0:00:00]} cxd4 {[%emt 0:01:00]} 16. Nb3 {[%emt 0:00:00]} Bd7 {[%emt 0:00:00]} 17. Bd2 {[%emt 0:00:00]} Ba4 {[%emt 0:00:00]} 18. Qb2 {[%emt 0:00:00]} Bd6 {[%emt 0:00:00]} 19. Rec1 {[%emt 0:00:00]} Qd7 {[%emt 0:00:00]} 20. Be2 {[%emt 0:00:00]} h6 {[%emt 0:00:00]} 21. h3 {[%emt 0:00:00]} Qe6 {[%emt 0:00:00]} 22. Bd1 {[%emt 0:00:00]} Qe7 {[%emt 0:00:00]} 23. Nxd4 {[%emt 0:00:00]} Bd7 {[%emt 0:04:00]} 24. Nf3 {[%emt 0:00:00]} Nh5 {[%emt 0:00:00]} 25. Rxc8 {[%emt 0:00:00]} Bxc8 {[%emt 0:01:00]} 26. Rc1 {[%emt 0:00:00]} Bd7 {[%emt 0:00:30]} 27. Bb3 {[%emt 0:00:00]} Qf6 {[%emt 0:00:30]} 28. Kh2 {[%emt 0:07:00]} Nf4 {[%emt 0:00:30]} 29. Ne1 {[%emt 0:00:00]} Ne2 {[%emt 0:00:30]} 30. Be3 {[%emt 0:00:00]} Nxc1 {[%emt 0:00:00]} 31. Qxc1 {[%emt 0:00:00]} Rc8 {[%emt 0:00:00]} 32. Qd2 {[%emt 0:00:00]} Be6 {[%emt 0:01:30]} 33. Bd1 {[%emt 0:00:00]} Qd8 {[%emt 0:00:30]} 34. Nf3 {[%emt 0:00:00]} Qc7 {[%emt 0:00:00]} 35. Nh4 {[%emt 0:00:00]} Be7 {[%emt 0:00:00]} 36. Nf5 {[%emt 0:04:00]} Bxf5 {[%emt 0:00:00]} 37. exf5 {[%emt 0:00:00]} e4+ {[%emt 0:00:00]} 38. g3 {[%emt 0:00:00]} Qc3 {[%emt 0:00:00]} 39. Qe2 {[%emt 0:00:00]} exd3 {[%emt 0:00:00]} 40. Qg4 {[%emt 0:00:00]} Rc4 {[%emt 0:00:37]} 41. Qf3 {[%emt 0:09:25]} Bg5 {[%emt 0:32:30]} 42. Bc5 {[%emt 0:04:41]} Qe1 {[%emt 0:01:23]} 43. Bb3 {[%emt 0:00:00]} Qe4 {[%emt 0:00:00]} 44. Qh5 {[%emt 0:00:00]} b5 {[%emt 0:00:00]} 45. h4 {[%emt 0:00:00]} Bf6 {[%emt 0:00:00]} 46. a4 {[%emt 0:00:00]} bxa4 {[%emt 0:00:00]} 47. Bxc4 {[%emt 0:00:00]} Qxc4 {[%emt 0:02:30]} 48. g4 {[%emt 0:00:00]} Qf4+ {[%emt 0:00:00]} 49. Kg1 {[%emt 0:00:00]} Qf3 {[%emt 0:00:00]} 50. Be3 {[%emt 0:00:00]} a3 {[%emt 0:00:00]} 0-1

[Event "Bangabandhu Premier Div League 2023-24"]
[Site "Dhaka"]
[Date "2024.02.04"]
[Round "4.12"]
[White "Abdullah Al, Raison"]
[Black "Manon, Reja Neer"]
[Result "0-1"]
[ECO "C24"]
[WhiteElo "1839"]
[BlackElo "2169"]
[Annotator "RC"]
[PlyCount "66"]
[EventDate "2024.02.01"]
[EventCountry "BAN"]
[SourceTitle "playchess.com"]
[Source "ChessBase"]
[SourceQuality "1"]
[TimeControl "40/5400+30:1800+30"]

1. e4 {[%emt 0:00:23]} e5 {[%emt 0:00:06]} 2. Bc4 {[%emt 0:00:56]} Nf6 {[%emt 0:00:02]} 3. d3 {[%emt 0:00:09]} c6 {[%emt 0:00:01]} 4. Nf3 {[%emt 0:00:23]} d5 {[%emt 0:00:02]} 5. Bb3 {[%emt 0:00:15]} a5 {[%emt 0:00:01]} 6. a4 {[%emt 0:00:38]} Bb4+ {[%emt 0:00:03]} 7. c3 {[%emt 0:01:11]} Bd6 {[%emt 0:00:13]} 8. O-O {[%emt 0:02:06]} O-O {[%emt 0:00:06]} 9. Re1 {[%emt 0:01:33]} dxe4 {[%emt 0:01:59]} 10. dxe4 {[%emt 0:00:31]} Qe7 {[%emt 1:32:57]} 11. Qe2 {[%emt 0:08:48]} Na6 {[%emt 0:00:00]} 12. Nbd2 {[%emt 1:19:37]} Bc7 {[%emt 0:00:00]} 13. h3 {[%emt 0:00:00]} Nc5 {[%emt 0:00:00]} 14. Bc2 {[%emt 0:00:00]} Nh5 {[%emt 0:00:00]} 15. Nc4 {[%emt 0:00:00]} Ne6 {[%emt 0:00:00]} 16. g3 {[%emt 0:00:00]} Nc5 {[%emt 0:00:00]} 17. Kg2 {[%emt 0:00:00]} Qe6 {[%emt 0:00:00]} 18. Ng1 {[%emt 0:00:00]} Qg6 {[%emt 0:00:00]} 19. Kh2 {[%emt 0:00:00]} f5 {[%emt 0:00:00]} 20. exf5 {[%emt 0:00:00]} Bxf5 {[%emt 0:00:00]} 21. Bxf5 {[%emt 0:00:00]} Qxf5 {[%emt 0:00:00]} 22. Be3 {[%emt 0:00:00]} Nd3 {[%emt 0:00:00]} 23. Rf1 {[%emt 0:00:00]} e4 {[%emt 0:00:00]} 24. Qg4 {[%emt 0:06:00]} Qf7 {[%emt 0:07:00]} 25. Qxe4 {[%emt 0:00:00]} Nxf2 {[%emt 0:00:00]} 26. Bxf2 {[%emt 0:00:00]} Qxf2+ {[%emt 0:00:00]} 27. Rxf2 {[%emt 0:00:00]} Rxf2+ {[%emt 0:00:00]} 28. Qg2 {[%emt 0:00:00]} Bxg3+ {[%emt 0:00:00]} 29. Kh1 {[%emt 0:00:00]} Raf8 {[%emt 0:00:00]} 30. Nf3 {[%emt 0:00:00]} R8xf3 {[%emt 0:00:00]} 31. Qg1 {[%emt 0:00:00]} Bc7 {[%emt 0:03:30]} 32. Qg4 {[%emt 0:00:00]} Ng3+ {[%emt 0:00:00]} 33. Kg1 {[%emt 0:00:00]} Ne2+ {[%emt 0:00:00]} 0-1